fUST/lending_fUST_20250901
["ID","MTS","AMOUNT","RATE_DAILY","PERIOD"]
[382646611,1756693484677,-500.0,0.00016032,2]
[382646612,1756693484706,-500.0,0.00016032,2]
[382646613,1756693484735,-397.74922874,0.00016032,2]
[382646614,1756693484763,-500.0,0.00016032,2]
[382646615,1756693484791,-500.0,0.00016032,2]
[382646616,1756693484821,-188.64044642,0.00016032,2]
[382646617,1756693484950,-311.35955358,0.00016032,2]
[382646618,1756693484979,-500.0,0.00016032,2]
[382646619,1756693485008,-500.0,0.00016032,2]
[382646620,1756693485037,-500.0,0.00016032,2]
[382646621,1756693485067,-500.0,0.00016032,2]
[382646622,1756693485096,-381.52282374,0.00016032,2]
[382646623,1756693485125,-480.0,0.00016032,2]
[382646624,1756693485155,-480.0,0.00016033,2]
[382646625,1756693485185,-483.65722439,0.00016033,2]
[382646626,1756693485218,-206.42120819,0.00016033,2]
[382646627,1756693485248,-480.0,0.00016033,2]
[382646628,1756693485385,-481.26547292,0.00016033,2]
[382646629,1756693485414,-1091.04,0.00016033,2]
[382646630,1756693485442,-480.0,0.00016033,2]
[382646631,1756693485470,-824.93,0.00016033,2]
[382646632,1756693485498,-481.21143917,0.00016033,2]
[382646633,1756693485527,-1312.62,0.00016033,2]
[382646634,1756693485556,-177.87617582,0.00016033,2]
[382646635,1756693485678,-302.12382418,0.00016033,2]
[382646636,1756693485707,-480.0,0.00016033,2]
[382646637,1756693485737,-480.0,0.00016033,2]
[382646638,1756693485768,-574.28,0.00016033,2]
[382646639,1756693485796,-480.0,0.00016033,2]
[382646640,1756693485823,-480.0,0.00016033,2]
[382646641,1756693485852,-592.91,0.00016033,2]
[382646642,1756693485880,-480.0,0.00016033,2]
[382646643,1756693485909,-480.0,0.00016033,2]
[382646644,1756693485936,-482.34,0.00016033,2]
[382646645,1756693486024,-480.0,0.00016033,2]
[382646646,1756693486053,-482.81230584,0.00016033,2]
[382646647,1756693486084,-902.28,0.00016033,2]
[382646648,1756693486115,-480.0,0.00016033,2]
[382646649,1756693486143,-480.0,0.00016033,2]
[382646650,1756693486173,-579.37635485,0.00016033,2]
[382646651,1756693486205,-627.71,0.00016033,2]
[382646652,1756693486234,-829.21,0.00016033,2]
[382646653,1756693486741,-480.0,0.00016033,2]
[382646654,1756693486769,-619.78,0.00016033,2]
[382646655,1756693486798,-480.0,0.00016033,2]
[382646656,1756693486827,-480.0,0.00016033,2]
[382646657,1756693486855,-684.66,0.00016033,2]
[382646658,1756693486883,-480.0,0.00016033,2]
[382646659,1756693486913,-480.0,0.00016033,2]
[382646660,1756693486942,-1003.71,0.00016033,2]
[382646661,1756693486972,-86.89,0.00016033,2]
[382646662,1756693487062,-409.93,0.00016033,2]
[382646663,1756693487094,-894.52,0.00016033,2]
[382646664,1756693487124,-977.32,0.00016033,2]
[382646665,1756693487154,-1933.89,0.00016033,2]
[382646666,1756693487184,-480.0,0.00016033,2]
[382646667,1756693487515,-971.71,0.00016033,2]
[382646668,1756693487543,-492.51,0.00016033,2]
[382646669,1756693487570,-480.0,0.00016033,2]
[382646670,1756693487598,-480.0,0.00016033,2]
[382646671,1756693487627,-480.0,0.00016033,2]
[382646672,1756693487655,-480.0,0.00016033,2]
[382646673,1756693487685,-480.0,0.00016034,2]
[382646674,1756693487713,-480.0,0.00016034,2]
[382646675,1756693487741,-480.0,0.00016034,2]
[382646677,1756693494926,-480.0,0.00016033,2]
[382646678,1756693494955,-480.0,0.00016034,2]
[382646679,1756693494984,-480.0,0.00016034,2]
[382646680,1756693495013,-480.0,0.00016034,2]
[382646681,1756693495043,-609.54,0.00016034,2]
[382646682,1756693495072,-756.87,0.00016034,2]
[382646683,1756693495299,-480.0,0.00016034,2]
[382646684,1756693495328,-480.0,0.00016034,2]
[382646685,1756693495359,-480.0,0.00016034,2]
[382646686,1756693495389,-67.19,0.00016034,2]
[382646687,1756693495532,-412.81,0.00016034,2]
[382646688,1756693495561,-746.13,0.00016034,2]
[382646689,1756693495589,-480.0,0.00016034,2]
[382646690,1756693495618,-480.0,0.00016034,2]
[382646691,1756693495646,-480.0,0.00016034,2]
[382646692,1756693495674,-480.0,0.00016034,2]
[382646693,1756693495702,-480.0,0.00016034,2]
[382646694,1756693495732,-482.14472547,0.00016034,2]
[382646695,1756693495760,-724.87,0.00016034,2]
[382646696,1756693495849,-480.0,0.00016034,2]
[382646697,1756693495877,-480.0,0.00016034,2]
[382646698,1756693495905,-400.0,0.00016034,2]
[382646699,1756693495934,-480.0,0.00016034,2]
[382646700,1756693495962,-494.09355426,0.00016034,2]
[382646701,1756693495991,-480.0,0.00016034,2]
[382646702,1756693496021,-567.29,0.00016034,2]
[382646703,1756693496048,-480.0,0.00016034,2]
[382646704,1756693496076,-480.0,0.00016034,2]
[382646705,1756693496103,-480.0,0.00016034,2]
[382646706,1756693496304,-480.0,0.00016034,2]
[382646707,1756693496342,-480.0,0.00016034,2]
[382646708,1756693496379,-494.38,0.00016034,2]
[382646709,1756693496412,-480.0,0.00016034,2]
[382646710,1756693496442,-433.28805066,0.00016034,2]
[382646711,1756693496473,-480.0,0.00016034,2]
[382646712,1756693496503,-480.0,0.00016034,2]
[382646713,1756693496534,-480.0,0.00016034,2]
[382646714,1756693496564,-480.0,0.00016034,2]
[382646715,1756693496594,-537.31,0.00016034,2]
[382646716,1756693496694,-480.0,0.00016034,2]
[382646717,1756693496731,-480.0,0.00016034,2]
[382646718,1756693496763,-853.34,0.00016034,2]
[382646719,1756693496794,-480.0,0.00016034,2]
[382646720,1756693496827,-755.22,0.00016034,2]
[382646721,1756693496862,-480.0,0.00016034,2]
[382646722,1756693496896,-480.0,0.00016034,2]
[382646723,1756693496932,-461.77904097,0.00016034,2]
[382646724,1756693496968,-480.0,0.00016034,2]
[382646725,1756693497144,-480.0,0.00016034,2]
[382646726,1756693497173,-480.0,0.00016034,2]
[382646727,1756693497206,-480.0,0.00016034,2]
[382646728,1756693497236,-764.24,0.00016034,2]
[382646729,1756693497265,-480.0,0.00016034,2]
[382646730,1756693497294,-480.0,0.00016034,2]
[382646731,1756693497323,-480.0,0.00016034,2]
[382646732,1756693497353,-764.92,0.00016034,2]
[382646733,1756693497382,-480.0,0.00016034,2]
[382646734,1756693497541,-480.0,0.00016034,2]
[382646735,1756693497572,-480.0,0.00016034,2]
[382646736,1756693497602,-726.67,0.00016034,2]
[382646737,1756693497631,-480.0,0.00016034,2]
[382646738,1756693497662,-480.0,0.00016034,2]
[382646739,1756693497690,-480.0,0.00016034,2]
[382646740,1756693497720,-480.0,0.00016034,2]
[382646741,1756693497749,-480.0,0.00016034,2]
[382646742,1756693497780,-480.0,0.00016034,2]
[382646743,1756693497974,-354.0,0.00016034,2]
[382646744,1756693498131,-158.67,0.00016034,2]
[382646745,1756693498164,-480.0,0.00016034,2]
[382646746,1756693498199,-494.38,0.00016034,2]
[382646747,1756693498230,-3346.47,0.00016034,2]
[382646748,1756693498364,-1040.97,0.00016034,2]
[382646749,1756693498393,-1043.73,0.00016034,2]
[382646750,1756693498422,-480.0,0.00016034,2]
[382646751,1756693498451,-1886.57,0.00016034,2]
[382646752,1756693498491,-1312.03,0.00016034,2]
[382646753,1756693498520,-991.81,0.00016034,2]
[382646754,1756693498549,-1807.21,0.00016034,2]
[382646755,1756693498579,-480.0,0.00016034,2]
[382646756,1756693498609,-313.94,0.00016034,2]
[382646758,1756693500113,-190.03,0.00016034,2]
[382646759,1756693500123,-480.0,0.00016034,2]
[382646760,1756693500134,-131.75194934,0.00016034,2]
[382646761,1756693500150,-348.24805066,0.00016034,2]
[382646762,1756693500162,-131.75194934,0.00016034,2]
[382646763,1756693500177,-348.24805066,0.00016034,2]
[382646764,1756693500189,-155.72194934,0.00016034,2]
[382646780,1756693580508,300.1876,0.00027397,120]
[382646796,1756693635593,400.86683721,0.00015933,2]
[382646799,1756693652487,1272.97304778,0.00030744,120]
[382646828,1756693670203,-151.0,0.00016025,2]
[382646829,1756693670236,-300.0,0.00016031,2]
[382646830,1756693670267,-480.0,0.00016032,2]
[382646831,1756693670298,-831.51,0.00016032,2]
[382646832,1756693670332,-1277.93,0.00016032,2]
[382646833,1756693670363,-480.0,0.00016032,2]
[382646834,1756693670393,-629.57,0.00016032,2]
[382646835,1756693670424,-793.11,0.00016032,2]
[382646836,1756693670538,-113.77,0.00016032,2]
[382646837,1756693670572,-480.0,0.00016032,2]
[382646838,1756693670601,-575.45660606,0.00016032,2]
[382646839,1756693670629,-467.95252676,0.00016032,2]
[382646840,1756693670657,-480.0,0.00016032,2]
[382646841,1756693670684,-480.0,0.00016032,2]
[382646842,1756693670714,-500.0,0.00016033,2]
[382646843,1756693670744,-500.0,0.00016033,2]
[382646844,1756693670774,-500.0,0.00016033,2]
[382646845,1756693670808,-500.0,0.00016033,2]
[382646846,1756693670836,-305.65173436,0.00016033,2]
[382646847,1756693670947,-1949.11,0.00016032,2]
[382646848,1756693670975,-194.34826564,0.00016033,2]
[382646849,1756693671204,-500.0,0.00016033,2]
[382646850,1756693671239,-500.0,0.00016033,2]
[382646851,1756693671268,-167.81522942,0.00016033,2]
[382646852,1756693671297,-500.0,0.00016033,2]
[382646853,1756693671330,-500.0,0.00016033,2]
[382646854,1756693671359,-500.0,0.00016033,2]
[382646855,1756693671436,-533.57349716,0.00016033,2]
[382646856,1756693671465,-333.42937277,0.00016033,2]
[382646857,1756693671494,-500.0,0.00016033,2]
[382646858,1756693671526,-500.0,0.00016033,2]
[382646859,1756693671555,-354.50834585,0.00016033,2]
[382646860,1756693671585,-500.0,0.00016033,2]
[382646861,1756693671616,-500.0,0.00016033,2]
[382646862,1756693671646,-500.0,0.00016033,2]
[382646863,1756693671674,-242.0,0.00016033,2]
[382646864,1756693671702,-872.98756844,0.00016033,2]
[382646865,1756693671864,-327.01243156,0.00016033,2]
[382646866,1756693671891,-300.0,0.00016033,2]
[382646867,1756693671924,-480.0,0.00016033,2]
[382646868,1756693671953,-480.0,0.00016033,2]
[382646869,1756693671982,-480.0,0.00016033,2]
[382646870,1756693672012,-644.74,0.00016033,2]
[382646871,1756693672041,-550.35,0.00016033,2]
[382646872,1756693672070,-480.0,0.00016033,2]
[382646873,1756693672099,-662.02,0.00016033,2]
[382646874,1756693672127,-480.0,0.00016033,2]
[382646875,1756693672265,-568.2,0.00016033,2]
[382646876,1756693672299,-1831.16,0.00016033,2]
[382646877,1756693672331,-480.0,0.00016033,2]
[382646878,1756693672359,-480.0,0.00016033,2]
[382646879,1756693672398,-487.73,0.00016033,2]
[382646880,1756693672431,-480.0,0.00016033,2]
[382646881,1756693672462,-613.03,0.00016033,2]
[382646882,1756693672543,-480.0,0.00016033,2]
[382646883,1756693672578,-1688.27,0.00016033,2]
[382646884,1756693672609,-480.0,0.00016033,2]
[382646885,1756693672639,-480.0,0.00016033,2]
[382646886,1756693672671,-480.0,0.00016033,2]
[382646887,1756693672701,-837.75,0.00016033,2]
[382646888,1756693672826,-1123.47,0.00016033,2]
[382646889,1756693672857,-480.0,0.00016033,2]
[382646890,1756693672886,-688.11,0.00016033,2]
[382646891,1756693672916,-898.93,0.00016033,2]
[382646892,1756693672946,-754.05,0.00016033,2]
[382646893,1756693672979,-480.0,0.00016033,2]
[382646894,1756693673009,-480.0,0.00016033,2]
[382646895,1756693673059,-480.0,0.00016033,2]
[382646896,1756693673090,-480.0,0.00016033,2]
[382646897,1756693673120,-480.0,0.00016033,2]
[382646898,1756693673150,-3355.61,0.00016033,2]
[382646899,1756693673279,-750.42,0.00016033,2]
[382646900,1756693673311,-532.64,0.00016033,2]
[382646901,1756693673340,-480.0,0.00016033,2]
[382646902,1756693673369,-1413.95,0.00016033,2]
[382646903,1756693675265,-284.17550391,0.00016034,2]
[382646904,1756693675279,-532.64,0.00016034,2]
[382646905,1756693675303,-480.0,0.00016034,2]
[382646906,1756693675323,-1413.95,0.00016034,2]
[382646907,1756693675336,-3645.99,0.00016034,2]
[382646910,1756693680275,-480.0,0.00016033,2]
[382646911,1756693680306,-573.51,0.00016033,2]
[382646912,1756693680539,-7892.99,0.00016034,2]
[382646913,1756693680679,-10000.01,0.00016034,2]
[382646914,1756693680703,-10000.01,0.00016034,2]
[382646915,1756693680735,-2128.03790942,0.00016034,2]
[382646916,1756693680761,-5743.93418116,0.00016034,2]
[382646917,1756693680881,-500.0,0.00016034,2]
[382646918,1756693680910,-324.27805066,0.00016034,2]
[382646919,1756693680940,-957.63,0.00016034,2]
[382646920,1756693680970,-480.0,0.00016034,2]
[382646921,1756693680999,-1023.42,0.00016034,2]
[382646922,1756693681028,-480.0,0.00016034,2]
[382646923,1756693681060,-480.0,0.00016034,2]
[382646924,1756693681088,-480.0,0.00016034,2]
[382646925,1756693681116,-69.35389868,0.00016034,2]
[382646926,1756693681216,-499.91,0.00016032,2]
[382646927,1756693681248,-410.64610132,0.00016034,2]
[382646928,1756693681279,-480.0,0.00016034,2]
[382646929,1756693681308,-480.0,0.00016034,2]
[382646930,1756693681337,-896.76,0.00016034,2]
[382646931,1756693681365,-480.0,0.00016034,2]
[382646932,1756693681393,-480.0,0.00016034,2]
[382646933,1756693681422,-480.0,0.00016034,2]
[382646934,1756693681451,-480.0,0.00016034,2]
[382646935,1756693681480,-145.37779736,0.00016034,2]
[382646936,1756693681812,-334.62220264,0.00016034,2]
[382646937,1756693681840,-888.01,0.00016034,2]
[382646938,1756693681869,-480.0,0.00016034,2]
[382646939,1756693681896,-600.07,0.00016034,2]
[382646940,1756693681924,-480.0,0.00016034,2]
[382646941,1756693681954,-480.0,0.00016034,2]
[382646942,1756693681984,-727.66,0.00016034,2]
[382646943,1756693682013,-480.0,0.00016034,2]
[382646944,1756693682041,-480.0,0.00016034,2]
[382646945,1756693682151,-480.0,0.00016034,2]
[382646946,1756693682178,-592.14,0.00016034,2]
[382646947,1756693682206,-889.48,0.00016034,2]
[382646948,1756693682237,-602.80437329,0.00016034,2]
[382646949,1756693682267,-480.0,0.00016034,2]
[382646950,1756693682297,-862.98,0.00016034,2]
[382646951,1756693682327,-877.6,0.00016034,2]
[382646952,1756693682458,-480.0,0.00016034,2]
[382646953,1756693682487,-480.0,0.00016034,2]
[382646954,1756693682516,-909.56,0.00016034,2]
[382646955,1756693682544,-480.0,0.00016034,2]
[382646956,1756693682573,-480.0,0.00016034,2]
[382646957,1756693682602,-480.0,0.00016034,2]
[382646958,1756693682631,-480.0,0.00016034,2]
[382646959,1756693682661,-480.0,0.00016034,2]
[382646960,1756693682691,-480.0,0.00016034,2]
[382646961,1756693682720,-20.89,0.00016034,2]
[382646962,1756693682923,-459.11,0.00016034,2]
[382646963,1756693682952,-480.0,0.00016034,2]
[382646964,1756693682981,-480.0,0.00016034,2]
[382646965,1756693683010,-837.42,0.00016034,2]
[382646966,1756693683039,-480.0,0.00016034,2]
[382646967,1756693683071,-480.0,0.00016034,2]
[382646968,1756693683103,-455.96158309,0.00016034,2]
[382646969,1756693683133,-480.0,0.00016034,2]
[382646970,1756693683162,-481.48598051,0.00016034,2]
[382646971,1756693683193,-252.0548728,0.00016034,2]
[382646972,1756693684634,-140.60649357,0.00016034,2]
[382646973,1756693684652,-87.33863363,0.00016034,2]
[382646974,1756693684661,-368.62294946,0.00016034,2]
[382646975,1756693684676,-111.37705054,0.00016034,2]
[382646976,1756693684685,-368.62294946,0.00016034,2]
[382646977,1756693684700,-302.57705054,0.00016034,2]
[382646978,1756693684709,-178.90892997,0.00016034,2]
[382646979,1756693684728,-480.0,0.00016034,2]
[382646992,1756693719388,542.87058221,0.00030744,60]
[382646993,1756693722088,205.35928564,0.00030744,120]
[382647002,1756693776982,1188.81050904,0.00015935,2]
[382647038,1756693832769,-300.0,0.00016031,2]
[382647039,1756693832778,-60.69930876,0.00016031,2]
[382647040,1756693832789,-239.30069124,0.00016031,2]
[382647041,1756693832799,-300.0,0.00016031,2]
[382647042,1756693832808,-235.09140177,0.00016031,2]
[382647043,1756693832819,-64.90859823,0.00016031,2]
[382647044,1756693832827,-300.0,0.00016031,2]
[382647045,1756693832836,-256.40182478,0.00016032,2]
[382647046,1756693832917,-674.82817522,0.00016032,2]
[382647047,1756693832928,-480.0,0.00016032,2]
[382647048,1756693832937,-480.0,0.00016032,2]
[382647049,1756693832947,-1135.28,0.00016032,2]
[382647050,1756693832957,-748.99917642,0.00016032,2]
[382647051,1756693832966,-327.21586836,0.00016032,2]
[382647094,1756693838472,-152.78413164,0.00016032,2]
[382647096,1756693838482,-480.0,0.00016032,2]
[382647098,1756693838492,-558.44,0.00016032,2]
[382647100,1756693838501,-480.0,0.00016032,2]
[382647102,1756693838511,-1835.83,0.00016032,2]
[382647104,1756693838520,-831.95,0.00016032,2]
[382647106,1756693838529,-480.0,0.00016032,2]
[382647108,1756693838538,-480.0,0.00016032,2]
[382647110,1756693838548,-480.0,0.00016032,2]
[382647112,1756693838557,-489.78,0.00016032,2]
[382647114,1756693838566,-333.52966194,0.00016032,2]
[382647116,1756693838578,-579.39746695,0.00016032,2]
[382647119,1756693838590,-356.81287111,0.00016032,2]
[382647121,1756693838599,-631.44,0.00016032,2]
[382647123,1756693838608,-951.43,0.00016032,2]
[382647125,1756693838618,-480.0,0.00016032,2]
[382647126,1756693838627,-480.0,0.00016032,2]
[382647128,1756693838636,-468.92176058,0.00016032,2]
[382647208,1756693839391,-11.07823942,0.00016032,2]
[382647210,1756693839401,-410.56157373,0.00016032,2]
[382647212,1756693839410,-870.34,0.00016032,2]
[382647214,1756693839419,-480.0,0.00016032,2]
[382647216,1756693839429,-1147.97237951,0.00016032,2]
[382647218,1756693839438,-152.33519929,0.00016032,2]
[382647221,1756693839449,-995.63718022,0.00016032,2]
[382647223,1756693839460,-574.76309608,0.00016032,2]
[382647226,1756693839485,-573.20928343,0.00016032,2]
[382647229,1756693839495,-346.79071657,0.00016032,2]
[382647631,1756693843622,-500.0,0.00016032,2]
[382647633,1756693843632,-204.86626098,0.00016032,2]
[382647635,1756693843641,-500.0,0.00016032,2]
[382647637,1756693843650,-379.97864584,0.00016032,2]
[382647639,1756693843659,-428.2787051,0.00016032,2]
[382647641,1756693843669,-250.06039454,0.00016032,2]
[382647643,1756693843678,-801.18166294,0.00016032,2]
[382647645,1756693843687,-1147.97237951,0.00016032,2]
[382647648,1756693843696,-1147.97237951,0.00016032,2]
[382647649,1756693843705,-23.18957158,0.00016032,2]
[382647939,1756693846700,-1031.61857672,0.00016032,2]
[382647941,1756693846713,-93.16423121,0.00016032,2]
[382647943,1756693846723,-1147.97237951,0.00016032,2]
[382647945,1756693846732,-1147.97237951,0.00016032,2]
[382647947,1756693846741,-31.45295773,0.00016032,2]
[382647953,1756693846860,-1116.51942178,0.00016032,2]
[382647954,1756693846870,-1147.97237951,0.00016032,2]
[382647955,1756693846879,-480.0,0.00016032,2]
[382647956,1756693846887,-1147.97237951,0.00016032,2]
[382647957,1756693846896,-1147.97237951,0.00016032,2]
[382647958,1756693846905,-1147.97237951,0.00016032,2]
[382647959,1756693846915,-480.0,0.00016032,2]
[382647960,1756693846924,-1147.97237951,0.00016032,2]
[382647961,1756693846933,-1147.97237951,0.00016032,2]
[382647962,1756693846942,-1147.97237951,0.00016032,2]
[382647963,1756693846951,-1147.97237951,0.00016032,2]
[382647964,1756693846962,-480.0,0.00016032,2]
[382647965,1756693846971,-790.82,0.00016032,2]
[382647966,1756693846980,-1147.97237951,0.00016032,2]
[382647967,1756693846989,-50000.0,0.00016033,2]
[382647968,1756693846998,-731.01,0.00016033,2]
[382647969,1756693847007,-480.0,0.00016033,2]
[382647970,1756693847016,-617.88,0.00016033,2]
[382647972,1756693847026,-480.0,0.00016033,2]
[382647973,1756693847036,-480.0,0.00016033,2]
[382647974,1756693847045,-634.43,0.00016033,2]
[382647975,1756693847054,-480.0,0.00016033,2]
[382647976,1756693847063,-4629.49,0.00016033,2]
[382647977,1756693847072,-860.75,0.00016033,2]
[382647978,1756693847081,-480.0,0.00016033,2]
[382647979,1756693847090,-743.75,0.00016033,2]
[382647980,1756693847099,-713.45,0.00016033,2]
[382647981,1756693847107,-482.7176269,0.00016033,2]
[382647982,1756693847117,-1937.58,0.00016033,2]
[382647983,1756693847126,-480.0,0.00016033,2]
[382647984,1756693847140,-164.209,0.00016033,2]
[382647985,1756693847149,-480.0,0.00016033,2]
[382647986,1756693847158,-480.0,0.00016033,2]
[382647987,1756693847167,-802.84,0.00016033,2]
[382647988,1756693847177,-1076.66,0.00016033,2]
[382647989,1756693847186,-480.0,0.00016033,2]
[382647990,1756693847405,-480.0,0.00016033,2]
[382647991,1756693847415,-480.0,0.00016033,2]
[382647992,1756693847424,-643.24,0.00016033,2]
[382647993,1756693847433,-480.0,0.00016033,2]
[382647994,1756693847442,-733.05,0.00016033,2]
[382647995,1756693847450,-480.0,0.00016033,2]
[382647996,1756693847459,-480.0,0.00016033,2]
[382647997,1756693847470,-3376.63,0.00016033,2]
[382647998,1756693847478,-480.0,0.00016033,2]
[382647999,1756693847488,-482.19934678,0.00016033,2]
[382648000,1756693847496,-1355.04,0.00016033,2]
[382648001,1756693847505,-480.0,0.00016033,2]
[382648002,1756693847515,-3056.95,0.00016033,2]
[382648003,1756693847524,-480.0,0.00016033,2]
[382648004,1756693847533,-789.21,0.00016033,2]
[382648005,1756693847543,-466.55107003,0.00016034,2]
[382648006,1756693847552,-480.0,0.00016034,2]
[382648007,1756693847560,-480.0,0.00016034,2]
[382648008,1756693847569,-480.0,0.00016034,2]
[382648009,1756693847578,-480.0,0.00016034,2]
[382648010,1756693847587,-480.0,0.00016034,2]
[382648011,1756693847596,-480.0,0.00016034,2]
[382648012,1756693847605,-480.0,0.00016034,2]
[382648013,1756693847614,-704.33,0.00016034,2]
[382648014,1756693847622,-746.5,0.00016034,2]
[382648015,1756693847631,-480.0,0.00016034,2]
[382648016,1756693847640,-480.97501971,0.00016034,2]
[382648017,1756693847649,-480.0,0.00016034,2]
[382648018,1756693847657,-605.61,0.00016034,2]
[382648019,1756693847666,-480.0,0.00016034,2]
[382648020,1756693847675,-480.0,0.00016034,2]
[382648021,1756693847683,-1638.89,0.00016034,2]
[382648022,1756693847692,-4616.28,0.00016034,2]
[382648023,1756693847701,-480.0,0.00016034,2]
[382648024,1756693847710,-480.0,0.00016034,2]
[382648025,1756693847720,-996.25,0.00016034,2]
[382648026,1756693847729,-482.79217295,0.00016034,2]
[382648027,1756693847739,-480.0,0.00016034,2]
[382648028,1756693847747,-480.0,0.00016034,2]
[382648029,1756693847756,-480.0,0.00016034,2]
[382648030,1756693847765,-1068.49,0.00016034,2]
[382648031,1756693847775,-480.0,0.00016034,2]
[382648032,1756693847784,-729.64,0.00016034,2]
[382648033,1756693847794,-480.0,0.00016034,2]
[382648034,1756693847804,-487.40208907,0.00016034,2]
[382648035,1756693847815,-567.21,0.00016034,2]
[382648036,1756693847825,-480.0,0.00016034,2]
[382648037,1756693847835,-762.52,0.00016034,2]
[382648038,1756693847845,-480.0,0.00016034,2]
[382648039,1756693847855,-1116.73,0.00016034,2]
[382648040,1756693847864,-480.0,0.00016034,2]
[382648041,1756693847874,-480.0,0.00016034,2]
[382648042,1756693847894,-480.0,0.00016034,2]
[382648043,1756693847905,-607.76,0.00016034,2]
[382648044,1756693847915,-4706.36,0.00016034,2]
[382648045,1756693847924,-482.51981354,0.00016034,2]
[382648046,1756693847934,-480.0,0.00016034,2]
[382648047,1756693847943,-1053.29,0.00016034,2]
[382648048,1756693847953,-480.0,0.00016034,2]
[382648049,1756693847963,-480.0,0.00016034,2]
[382648050,1756693847972,-480.0,0.00016034,2]
[382648051,1756693847982,-480.0,0.00016034,2]
[382648052,1756693847992,-480.0,0.00016034,2]
[382648053,1756693848001,-404.58687067,0.00016034,2]
[382648090,1756693883447,350.75848255,0.00015934,2]
[382648156,1756694032483,370000.0,0.00015933,2]
[382648170,1756694085500,159.0,0.00016,2]
[382648171,1756694086452,159.0,0.00016,2]
[382648174,1756694097577,159.0,0.00016,3]
[382648175,1756694100645,159.0,0.00016,3]
[382648179,1756694117962,951.04840724,0.00015934,2]
[382648180,1756694144879,79408.102676,0.00015034,2]
[382648181,1756694147860,374.96515381,0.00015932,2]
[382648189,1756694194964,370000.0,0.00015933,2]
[382648204,1756694300570,2999.999999,0.00016,2]
[382648224,1756694433072,328.09450961,0.00015931,2]
[382648229,1756694458690,921.97359898,0.00015934,2]
[382648232,1756694503609,151.0,0.00016,2]
[382648272,1756694704547,194.75682051,0.00013699,2]
[382648273,1756694704578,673.33653349,0.00013699,2]
[382648279,1756694724819,-252.77713597,0.0001593,2]
[382648289,1756694799129,-34.30555993,0.0001593,2]
[382648290,1756694799150,-210.94436817,0.00016022,3]
[382648292,1756694807469,-152.0,0.00015933,2]
[382648293,1756694813097,-352.76222609,0.00015933,2]
[382648295,1756694814541,-232.2853997,0.00015933,2]
[382648296,1756694817283,-81.09869,0.00015933,2]
[382648346,1756695030826,-253.6953502,0.00015703,2]
[382648374,1756695032704,-967.93081072,0.00015703,2]
[382648377,1756695032714,-251.19735893,0.00015929,2]
[382648379,1756695032724,-206.0,0.00016022,2]
[382648382,1756695032735,-34.30563183,0.00016022,3]
[382648385,1756695032745,-198.0,0.00016023,2]
[382648388,1756695032754,-300.0,0.00016023,2]
[382648391,1756695032764,-300.0,0.00016023,2]
[382648394,1756695032773,-276.72438415,0.00016023,2]
[382648398,1756695032792,-23.27561585,0.00016023,2]
[382648400,1756695032803,-300.0,0.00016023,2]
[382648403,1756695032813,-1000.0,0.00016024,2]